bitfinex-derivatives/quotes_ETHF0:USTF0_20250524
["timestamp","ask_amount","ask_price","bid_price","bid_amount"]
[1748098330525,1.3939,2559.8,2559.7,0.7811]
[1748098330819,3.11097031,2560.2,2560.1,0.78098]
[1748098331019,2.07695,2560.2,2560.1,0.78098]
[1748098331220,1.296,2560.2,2560.1,0.78098]
[1748098332222,6.23972031,2560.3,2560.2,0.78095]
[1748098332423,3.9097,2560.3,2560.2,0.78095]
[1748098332722,3.9097,2560.3,2560.1,0.78097]
[1748098332923,2.08375,2560.2,2560.1,0.78097]
[1748098333522,1.3028,2560.2,2560.1,0.78097]
[1748098336626,1.3028,2560.2,2560.0,0.78098]
[1748098336925,1.3028,2560.2,2560.1,0.78098]
[1748098337127,2.08377,2560.2,2560.1,0.78098]
[1748098337328,1.3028,2560.2,2560.1,0.78098]
[1748098338531,0.7019,2560.3,2560.2,0.78095]
[1748098340634,2.0899,2560.3,2560.2,0.78095]
[1748098343334,0.6682,2560.4,2560.3,0.78092]
[1748098343532,1.2841,2560.6,2560.5,0.78086]
[1748098344235,1.2841,2560.6,2560.5,2.19486]
[1748098345935,1.2841,2560.6,2560.4,3.2078]
[1748098346234,3.2078,2560.5,2559.7,1.95272]
[1748098346426,1.3587,2560.4,2560.3,0.78092]
[1748098346830,1.3313,2560.7,2560.6,0.78083]
[1748098347038,5.02002031,2560.7,2560.6,0.78083]
[1748098348233,5.80084031,2560.7,2560.4,1.3012]
[1748098348432,5.02002031,2560.7,2560.6,0.78083]
[1748098348634,2.33002031,2560.7,2560.6,3.98863]
[1748098349326,2.33002031,2560.7,2560.6,5.37213]
[1748098349527,4.5487,2560.9,2560.1,1.95245]
[1748098349732,2.6737,2560.6,2560.5,0.78084]
[1748098349929,3.45455,2560.6,2560.4,0.78087]
[1748098350733,0.78086,2560.5,2560.4,0.78087]
[1748098350935,0.7809,2560.4,2560.3,0.78091]
[1748098351136,2.12177,2560.5,2560.3,0.78089]
[1748098352032,0.78089,2560.4,2560.3,0.78089]
[1748098352239,1.3419,2560.4,2560.3,0.78089]
[1748098352437,2.12279,2560.4,2560.3,0.78089]
[1748098352639,1.3419,2560.4,2560.3,0.78089]
[1748098354236,1.3419,2560.4,2560.2,2.12183]
[1748098354435,1.3419,2560.4,2560.3,0.78092]
[1748098356339,1.3419,2560.4,2560.2,1.3409]
[1748098356544,0.78092,2560.3,2560.2,1.3409]
[1748098356736,2.1228,2560.4,2560.2,2.12185]
[1748098358343,4.45282031,2560.4,2560.2,2.12185]
[1748098358543,3.67192031,2560.4,2560.1,3.9045]
[1748098358839,4.45284031,2560.4,2560.2,0.78093]
[1748098359241,4.45284031,2560.4,2560.1,3.2078]
[1748098359242,3.67192031,2560.4,2560.1,3.2078]
[1748098359443,5.62418031,2560.4,2559.8,3.2078]
[1748098359636,3.67192031,2560.4,2559.8,3.2078]
[1748098359838,3.67192031,2560.4,2559.9,1.95261]
[1748098360034,3.67192031,2560.4,2560.0,1.3362]
[1748098360342,4.45284031,2560.4,2560.2,0.78093]
[1748098360544,0.78092,2560.3,2560.2,0.78093]
[1748098360739,2.08204,2560.3,2560.2,0.78095]
[1748098361135,0.78096,2560.2,2560.1,0.78097]
[1748098361340,2.76647,2560.2,2560.1,0.78098]
[1748098361648,29.7217,2560.2,2559.2,18.80865686]
[1748098361837,0.78115,2559.6,2559.5,0.78116]
[1748098362345,0.78112,2559.7,2559.6,0.78113]
[1748098362949,3.77940827,2559.7,2559.6,0.78113]
[1748098363242,3.77939827,2559.7,2559.6,0.78113]
[1748098363444,2.99828827,2559.7,2559.6,0.78113]
[1748098364041,2.99828827,2559.7,2559.6,2.16803]
[1748098364440,0.6594,2559.7,2559.6,2.16803]
[1748098364840,1.4405,2559.7,2559.6,2.16803]
[1748098365045,0.6594,2559.7,2559.6,2.16803]
[1748098365343,1.4405,2559.7,2559.6,1.3869]
[1748098365539,2.7535,2559.7,2559.6,2.16803]
[1748098365841,1.9724,2559.7,2559.6,2.16803]
[1748098366043,2.7535,2559.7,2559.6,2.16803]
[1748098366947,2.7535,2559.7,2559.6,1.3869]
[1748098367142,0.78113,2559.6,2559.5,3.98896]
[1748098367340,2.33888827,2559.9,2559.5,5.16065]
[1748098367548,2.33888827,2559.9,2559.8,0.78107]
[1748098367852,39.03035172,2560.1,2559.8,0.78106]
[1748098368149,0.78101,2560.0,2559.9,1.2777]
[1748098368348,2.13421,2560.0,2559.9,1.2777]
[1748098369349,4.46895802,2560.0,2559.9,1.2777]
[1748098370049,4.46895802,2560.0,2559.9,2.05874]
[1748098370242,4.46895802,2560.0,2559.9,1.2777]
[1748098370748,4.46895802,2560.0,2559.9,2.05874]
[1748098371151,3.68794802,2560.0,2559.9,2.05874]
[1748098371948,1.3532,2560.0,2559.9,2.05874]
[1748098372249,2.13421,2560.0,2559.9,2.05874]
[1748098372447,2.13421,2560.0,2559.9,0.78104]
[1748098375749,4.46895802,2560.0,2559.9,0.78104]
[1748098378050,0.78104,2559.9,2559.8,2.06095]
[1748098378255,2.19484,2559.9,2559.8,2.06095]
[1748098378950,1.4138,2559.9,2559.8,2.06095]
[1748098380051,2.19484,2559.9,2559.8,2.06095]
[1748098380247,2.33474802,2560.0,2559.9,0.78104]
[1748098380437,3.10165172,2560.3,2560.2,0.78095]
[1748098380637,3.10165172,2560.3,2560.2,19.58575]
[1748098380844,2.7677,2560.8,2560.3,1.9523]
[1748098380845,5.86935172,2560.8,2560.3,1.9523]
[1748098381056,6.65013172,2560.8,2560.6,0.7808]
[1748098381246,6.65013172,2560.8,2560.7,1.3839]
[1748098381647,3.10165172,2560.8,2560.7,2.1647]
[1748098382455,3.98854,2560.9,2560.8,0.78076]
[1748098382660,3.98854,2560.9,2560.8,2.17266]
[1748098382847,3.98854,2560.9,2560.8,1.3919]
[1748098383856,3.98854,2560.9,2560.8,2.17266]
[1748098384352,3.2078,2560.9,2560.8,2.17266]
[1748098384555,3.98853,2560.9,2560.8,2.17266]
[1748098384753,3.98853,2560.9,2560.8,1.3919]
[1748098385051,3.98853,2560.9,2560.8,2.17266]
[1748098385353,3.2078,2560.9,2560.8,2.17266]
[1748098385651,3.98853,2560.9,2560.8,2.17266]
[1748098386353,3.98853,2560.9,2560.8,1.3919]
[1748098386655,3.2078,2560.9,2560.8,2.17266]
[1748098387155,3.98853,2560.9,2560.8,2.17266]
[1748098387655,0.78073,2560.9,2560.8,2.17266]
[1748098387859,23.488,2561.1,2560.5,3.21365686]
[1748098388056,22.143,2561.1,2560.8,0.78075]
[1748098388355,1.3692,2561.0,2560.8,0.78075]
[1748098388754,1.3692,2561.0,2560.5,4.57265686]
[1748098388950,0.78079,2560.8,2560.7,0.78079]
[1748098390154,0.78081,2560.7,2560.6,0.78083]
[1748098390855,0.78078,2560.8,2560.7,0.7808]
[1748098391057,0.78078,2560.8,2560.6,0.7808]
[1748098391356,0.78078,2560.8,2560.7,1.2892]
[1748098392354,1.3692,2561.0,2560.5,3.99448686]
[1748098392655,0.78083,2560.6,2560.5,5.28368686]
[1748098392867,0.78083,2560.6,2560.5,4.50285686]
[1748098393157,1.34,2560.7,2560.6,0.78083]
[1748098393657,1.34,2560.7,2560.6,2.07003]
[1748098393857,2.1208,2560.7,2560.6,2.07003]
[1748098394165,1.34,2560.7,2560.6,2.07003]
[1748098394656,17.574,2560.9,2560.8,0.78074]
[1748098394849,18.35473,2560.9,2560.8,0.78074]
[1748098395249,18.35473,2560.9,2560.8,2.14044]
[1748098395459,0.78073,2560.9,2560.8,2.14044]
[1748098396761,2.12493,2561.0,2560.8,2.0237]
[1748098397057,3.10165172,2561.4,2561.3,0.78061]
[1748098397659,3.10165172,2561.4,2561.3,2.86191]
[1748098398561,2.05802,2561.7,2561.5,0.78054]
[1748098399057,0.78052,2561.6,2561.4,1.4028]
[1748098399260,2.05802,2561.6,2561.4,2.18338]
[1748098399859,0.78055,2561.5,2561.4,1.39741821]
[1748098400555,1.44885,2561.5,2561.4,1.39741821]
[1748098400755,0.7807,2561.0,2560.9,3.2078]
[1748098400952,3.2078,2561.3,2560.6,5.3032]
[1748098401151,0.73329626,2560.9,2560.6,5.30321]
[1748098401351,1.51404626,2560.9,2560.7,0.78078]
[1748098401851,0.78076,2560.8,2560.6,5.30321]
[1748098402256,0.78076,2560.8,2560.6,4.5224]
[1748098402456,2.09626,2560.8,2560.6,5.30322]
[1748098402657,0.07549626,2560.9,2560.8,0.78076]
[1748098403463,0.85622626,2560.9,2560.7,2.17917]
[1748098403660,2.26392626,2560.9,2560.8,1.3984]
[1748098405363,0.07549626,2560.9,2560.8,2.17916]
[1748098405569,0.85622626,2560.9,2560.8,2.17916]
[1748098407563,0.07549626,2560.9,2560.8,2.17916]
[1748098409365,0.85622626,2560.9,2560.8,2.17916]
[1748098409766,0.85622626,2560.9,2560.8,1.3984]
[1748098410766,0.85622626,2560.9,2560.8,2.17916]
[1748098412164,0.85622626,2560.9,2560.8,1.3984]
[1748098413466,2.17392626,2560.9,2560.8,1.3984]
[1748098413666,2.17392626,2560.9,2560.8,2.17916]
[1748098414670,2.17392626,2560.9,2560.8,1.3984]
[1748098416267,0.7808,2560.7,2560.6,3.8704]
[1748098416462,0.78083,2560.6,2560.5,0.00585686]
[1748098416665,1.47283,2560.6,2560.5,0.00585686]
[1748098416965,1.47283,2560.6,2560.5,1.31405686]
[1748098417365,2.84573,2560.6,2560.5,1.31405686]
[1748098417671,2.84573,2560.6,2560.5,2.09491686]
[1748098419066,2.0649,2560.6,2560.5,2.09491686]
[1748098419377,3.10806731,2560.7,2560.6,0.78083]
[1748098419571,3.10806731,2560.7,2560.6,1.4103]
[1748098420070,3.10806731,2560.7,2560.6,2.19113]
[1748098420270,0.78082,2560.7,2560.6,2.87973]
[1748098422170,0.78082,2560.7,2560.6,2.0989]
[1748098422873,0.78082,2560.7,2560.6,2.87973]
[1748098425472,2.06982,2560.7,2560.6,2.87973]
[1748098428678,1.289,2560.7,2560.6,2.87973]
[1748098429482,3.61624731,2560.7,2560.6,2.87973]
[1748098429774,4.39704731,2560.7,2560.6,2.87973]
[1748098430377,4.47254357,2560.7,2560.6,2.87973]
[1748098430678,3.69174357,2560.7,2560.6,2.87973]
[1748098431070,1.36449626,2560.7,2560.6,2.87973]
[1748098431777,2.14529626,2560.7,2560.6,2.87973]
[1748098431973,2.14529626,2560.7,2560.6,2.0989]
[1748098432277,0.78083,2560.6,2560.5,0.78669686]
[1748098432477,2.16783,2560.6,2560.5,0.78669686]
[1748098432878,1.387,2560.6,2560.5,0.78669686]
[1748098434375,3.7266008,2560.6,2560.5,0.78669686]
[1748098435481,3.7266008,2560.6,2560.5,2.15029686]
[1748098439384,2.3396008,2560.6,2560.5,2.15029686]
[1748098440686,1.48039626,2560.7,2560.5,2.15029686]
[1748098440687,0.07549626,2560.7,2560.6,0.78083]
[1748098440986,0.07549626,2560.7,2560.6,17.73283]
[1748098441181,0.07549626,2560.7,2560.6,22.73283]
[1748098441385,6.26e-06,2560.7,2560.6,22.73283]
[1748098441589,1e-08,2560.9,2560.8,0.78076]
[1748098441886,1e-08,2560.9,2560.8,3.98856]
[1748098442090,1e-08,2560.9,2560.8,24.28856]
[1748098442290,1e-08,2560.9,2560.8,25.59456]
[1748098442587,2.76716,2561.8,2560.8,24.8138]
[1748098442787,2.76716,2561.8,2561.3,3.2078]
[1748098442988,2.76716,2561.8,2561.6,0.78051]
[1748098444085,1.9867,2561.8,2561.4,2.0916]
[1748098444387,0.78055,2561.5,2561.4,1.3864]
[1748098445091,0.78054,2561.6,2561.4,2.16697]
[1748098445390,2.0165,2561.5,2561.4,2.16697]
[1748098446392,2.79705,2561.5,2561.4,2.16697]
[1748098446592,2.0165,2561.5,2561.2,0.78063]
[1748098446793,0.78066,2561.2,2561.0,4.66399]
[1748098446988,1.3091,2561.1,2561.0,4.66399]
[1748098447491,1.3091,2561.1,2561.0,3.98849]
[1748098447788,1.3091,2561.1,2561.0,5.37429]
[1748098448585,1.3091,2561.1,2561.0,2.16649]
[1748098448789,1.3091,2561.1,2561.0,5.37429]
[1748098449687,1.3091,2561.1,2561.0,4.5936]
[1748098449890,2.08977,2561.1,2561.0,3.2078]
[1748098450192,0.78083,2560.6,2560.5,0.00585686]
[1748098450690,17.64649626,2560.6,2560.5,0.00585686]
[1748098450887,18.42732626,2560.6,2560.5,0.00585686]
[1748098457092,3.2078,2560.9,2560.8,0.78076]
[1748098457392,3.89097955,2561.1,2560.9,0.78072]
[1748098457589,3.11028955,2561.1,2560.9,3.2078]
[1748098457789,1.4033,2561.0,2560.9,3.98853]
[1748098459094,1.354,2561.2,2561.1,0.78067]
[1748098459492,2.13464,2561.2,2561.0,1.45058]
[1748098459795,3.43494,2561.2,2561.0,0.6699]
[1748098460008,3.43494,2561.2,2561.1,0.78067]
[1748098460399,2.6543,2561.2,2561.1,0.78067]
[1748098462598,0.78067,2561.1,2561.0,0.6699]
[1748098463095,3.43497,2561.2,2561.0,1.45059]
[1748098463699,3.43497,2561.2,2561.0,0.6699]
[1748098463999,0.78067,2561.1,2561.0,0.6699]
[1748098464695,0.78067,2561.1,2561.0,1.4506]
[1748098464897,0.78067,2561.1,2561.0,0.6699]
[1748098465701,2.6543,2561.2,2561.0,1.4506]
[1748098466104,0.78067,2561.1,2561.0,0.6699]
[1748098466306,3.43496,2561.2,2561.0,0.6699]
[1748098466606,1.43816,2561.2,2561.1,0.78067]
[1748098466899,0.78067,2561.1,2561.0,1.45059]
[1748098468299,5.15949,2561.1,2560.6,0.6757]
[1748098468501,0.78083,2560.6,2560.5,0.00585686]
[1748098468904,0.85632626,2560.6,2560.5,0.00585686]
[1748098469707,18.42632626,2560.6,2560.5,0.00585686]
[1748098470007,18.42632626,2560.6,2560.1,3.2078]
[1748098470008,0.78095,2560.2,2560.1,3.2078]
[1748098470200,0.78093,2560.3,2560.1,3.98876]
[1748098470399,0.78095,2560.2,2560.1,3.2078]
[1748098470601,1.3795,2560.5,2560.1,3.2078]
[1748098470802,0.78095,2560.2,2560.1,3.2078]
[1748098471001,0.78095,2560.2,2560.1,4.5463]
[1748098472005,0.78095,2560.2,2560.1,3.2078]
[1748098473302,0.6597,2560.3,2560.2,0.78095]
[1748098473610,1.44062,2560.3,2560.2,1.3806]
[1748098473801,0.78095,2560.2,2560.1,3.2078]
[1748098474306,2.18385,2560.2,2560.1,3.2078]
[1748098474509,1.4029,2560.2,2560.1,3.98878]
[1748098474707,1.44063,2560.3,2560.2,0.78095]
[1748098474904,0.78095,2560.2,2560.1,0.78096]
[1748098476009,0.85644626,2560.2,2560.1,0.78096]
[1748098476309,0.78098,2560.1,2560.0,2.1616]
[1748098476807,0.78098,2560.1,2560.0,1.3806]
[1748098477313,0.78098,2560.1,2560.0,2.16161]
[1748098477609,1.41049626,2560.2,2559.9,0.00585686]
[1748098477910,0.78099,2560.1,2560.0,0.78101]
[1748098478311,0.78101,2560.0,2559.9,2.13847686]
[1748098478610,19.68019626,2560.2,2559.9,2.13847686]
[1748098479204,0.78101,2560.0,2559.9,2.13847686]
[1748098479911,0.78101,2560.0,2559.9,1.35745686]
[1748098480312,0.78099,2560.1,2559.9,1.35745686]
[1748098480612,0.78099,2560.1,2560.0,0.78101]
[1748098480811,0.78101,2560.0,2559.9,2.13847686]
[1748098481113,0.781,2560.1,2559.9,2.13847686]
[1748098481309,19.68019626,2560.2,2559.9,2.13847686]
[1748098481607,0.781,2560.1,2559.9,2.13847686]
[1748098482110,0.78101,2560.0,2559.9,1.35745686]
[1748098482416,0.781,2560.1,2559.9,2.13849686]
[1748098482708,0.78101,2560.0,2559.9,0.00585686]
[1748098487306,19.56081,2560.0,2559.9,0.00585686]
[1748098489110,18.35701,2560.0,2559.9,0.78689686]
[1748098489514,18.35701,2560.0,2559.9,0.00585686]
[1748098491018,33.93101,2560.0,2559.9,0.00585686]
[1748098491218,34.00650626,2560.0,2559.9,0.00585686]
[1748098494423,35.31460626,2560.0,2559.9,0.00585686]
[1748098495518,37.64628208,2560.0,2559.9,0.00585686]
[1748098496419,37.64728208,2560.0,2559.9,0.00585686]
[1748098497417,40.85508208,2560.0,2559.9,0.00585686]
[1748098498117,0.78119,2559.4,2559.3,3.989]
[1748098499212,0.78119,2559.4,2559.3,3.2078]
[1748098499514,2.08819,2559.4,2559.3,3.2078]
[1748098499912,2.08819,2559.4,2559.3,4.5069]
[1748098500620,0.78119,2559.4,2559.3,5.28812]
[1748098500921,18.99968,2559.5,2559.3,5.28812]
[1748098501121,18.35918,2559.5,2559.4,1.3865]
[1748098501430,2.33709592,2559.6,2559.5,0.78116]
[1748098501615,19.91509592,2559.6,2559.5,1.46616]
[1748098501816,19.91509592,2559.6,2559.5,2.11396]
[1748098502117,2.33709592,2559.6,2559.5,2.11396]
[1748098502520,2.33709592,2559.7,2559.6,0.78113]
[1748098502823,2.33709592,2559.7,2559.6,5.37543]
[1748098503022,2.33709592,2559.7,2559.6,10.37543]
[1748098503523,2.33709592,2559.7,2559.6,5.37543]
[1748098503725,0.07549626,2560.0,2559.6,4.5943]
[1748098503927,0.85651626,2560.0,2559.9,3.2078]
[1748098504123,0.85651626,2560.0,2559.9,4.5026]
[1748098504325,0.85651626,2560.0,2559.9,5.1419]
[1748098505327,0.85651626,2560.0,2559.9,5.92294]
[1748098506428,0.07549626,2560.0,2559.9,5.92294]
[1748098506824,0.85650626,2560.0,2559.9,5.92294]
[1748098507128,0.85650626,2560.0,2559.9,5.1419]
[1748098507323,2.15000626,2560.0,2559.9,5.1419]
[1748098509235,0.85650626,2560.0,2559.9,5.1419]
[1748098509734,0.07549626,2560.0,2559.9,5.92294]
[1748098511332,0.85650626,2560.0,2559.9,5.92294]
[1748098513535,0.78113,2559.6,2559.5,0.685]
[1748098513835,0.78111,2559.7,2559.5,1.3767]
[1748098514028,1.9891,2559.9,2559.5,1.3767]
[1748098514335,0.78111,2559.7,2559.6,0.78113]
[1748098514533,0.78111,2559.7,2559.5,2.15784]
[1748098515031,0.78111,2559.7,2559.6,1.3764]
[1748098515228,1.95283,2559.6,2559.1,0.71187023]
[1748098515533,0.78125,2559.2,2559.1,1.38225686]
[1748098516127,0.78125,2559.2,2559.1,0.00585686]
[1748098516331,0.78128,2559.1,2559.0,3.2078]
[1748098516933,0.78134,2559.0,2558.8,2.07287]
[1748098517128,0.78134,2558.9,2558.8,2.07287]
[1748098517633,0.78133,2559.0,2558.8,2.07286]
[1748098517829,0.78134,2558.9,2558.8,2.07286]
[1748098518231,0.78133,2559.0,2558.8,2.07286]
[1748098519136,0.78134,2558.9,2558.8,1.2915]
[1748098521042,0.78141,2558.7,2558.6,4.54095686]
[1748098521430,0.78139,2558.8,2558.6,5.32239686]
[1748098522439,0.78139,2558.8,2558.7,1.356]
[1748098522941,0.78141,2558.7,2558.6,3.21365686]
[1748098523139,1.48751,2558.7,2558.6,3.21365686]
[1748098524638,0.78153,2558.3,2558.2,1.356]
[1748098526244,16.8022,2558.6,2558.2,1.356]
[1748098526446,0.78152,2558.4,2558.3,0.78152]
[1748098527145,0.78153,2558.3,2558.2,2.13754]
[1748098527341,3.04491788,2558.7,2558.2,1.356]
[1748098527536,2.33881788,2558.7,2558.6,0.78144]
[1748098527732,2.41431414,2559.2,2559.1,0.78128]
[1748098527942,2.41431414,2559.2,2559.0,3.2078]
[1748098528141,0.78128,2559.1,2558.9,2.18302]
[1748098528444,0.78131,2559.0,2558.9,1.4017]
[1748098528839,0.78138,2558.8,2558.7,1.48151]
[1748098529145,0.78136,2558.9,2558.7,2.77191]
[1748098529342,0.78136,2558.9,2558.8,1.2904]
[1748098530544,0.78133,2559.0,2558.8,2.07178]
[1748098530845,2.17313,2559.0,2558.8,2.07178]
[1748098531244,0.78134,2558.9,2558.8,2.07178]
[1748098531444,0.78134,2558.9,2558.8,1.2904]
[1748098531839,0.78138,2558.8,2558.6,1.44242]
[1748098532039,2.15908,2558.8,2558.6,1.44242]
[1748098532247,2.15908,2558.8,2558.7,1.3529]
[1748098532546,1.3777,2558.8,2558.7,2.13431]
[1748098533937,2.15907,2558.8,2558.7,1.3529]
[1748098535348,1.3777,2558.8,2558.7,2.13431]
[1748098535548,2.15907,2558.8,2558.7,2.13431]
[1748098535852,1.3777,2558.8,2558.7,2.13431]
[1748098536150,0.07549626,2558.9,2558.8,0.78137]
[1748098536349,0.07549626,2558.9,2558.8,1.43947]
[1748098537149,0.85683626,2558.9,2558.8,1.43947]
[1748098537846,0.07549626,2558.9,2558.8,1.43947]
[1748098538041,0.07549626,2558.9,2558.8,2.77807]
[1748098538253,0.07549626,2558.9,2558.8,1.9967]
[1748098538254,0.85683626,2558.9,2558.8,1.9967]
[1748098539051,0.85683626,2558.9,2558.8,2.77807]
[1748098539254,0.85683626,2558.9,2558.8,1.9967]
[1748098539554,0.07549626,2558.9,2558.8,2.77807]
[1748098540546,0.07549626,2558.9,2558.8,7.77807]
[1748098541246,0.07549626,2558.9,2558.8,23.07807]
[1748098541948,0.07549626,2558.9,2558.8,38.53907]
[1748098542951,0.07549626,2558.9,2558.8,23.23907]
[1748098544455,0.07549626,2558.9,2558.8,18.23907]
[1748098552860,0.07549626,2558.9,2558.8,21.44687]
[1748098553857,0.07549626,2558.9,2558.8,21.52387]
[1748098554066,0.07549626,2558.9,2558.5,3.91610734]
[1748098554266,0.78144,2558.6,2558.5,3.2078]
[1748098554765,0.78144,2558.6,2558.5,3.98927]
[1748098555064,0.78142,2558.7,2558.5,3.98927]
[1748098555264,1.3555,2558.6,2558.5,3.98927]
[1748098555464,2.0102,2558.6,2558.5,3.98927]
[1748098559271,2.0102,2558.6,2558.5,0.78147]
[1748098561378,2.0102,2558.6,2558.5,2.14367]
[1748098564384,0.78147,2558.5,2558.4,3.98928]
[1748098564580,2.80087,2558.5,2558.4,3.2078]
[1748098564781,2.0194,2558.5,2558.4,3.9893]
[1748098571588,2.80087,2558.5,2558.4,3.9893]
[1748098572184,2.0194,2558.5,2558.4,3.9893]
[1748098575182,2.0194,2558.5,2558.4,0.7815]
[1748098575583,2.0194,2558.5,2558.4,2.0666]
[1748098578492,0.78159,2558.1,2558.0,3.21365686]
[1748098579291,1.2918,2558.3,2558.0,3.99527686]
[1748098579594,1.45877,2558.2,2558.0,3.99527686]
[1748098579787,1.2918,2558.1,2558.0,3.99527686]
[1748098580293,1.2918,2558.1,2558.0,0.78747686]
[1748098580489,0.6772,2558.2,2558.1,0.78159]
[1748098580693,2.33881788,2558.3,2558.2,0.78156]
[1748098580894,2.33881788,2558.3,2558.2,3.98936]
[1748098581089,2.33881788,2558.3,2558.2,5.31906]
[1748098581396,2.33881788,2558.3,2558.2,10.31906]
[1748098581688,0.07549626,2558.5,2558.4,0.7815]
[1748098584293,0.07549626,2558.5,2558.3,1.3297]
[1748098584796,0.07549626,2558.5,2558.4,0.7815]
[1748098588291,0.75739626,2558.5,2558.4,0.7815]
[1748098589900,0.75739626,2558.5,2558.4,2.0725]
[1748098591000,0.07549626,2558.5,2558.4,2.0725]
[1748098595604,1.48189626,2558.5,2558.4,2.0725]
[1748098596304,1.48189626,2558.5,2558.3,3.2078]
[1748098596597,0.7815,2558.4,2558.3,3.2078]
[1748098596804,1.4908,2558.4,2558.3,3.2078]
[1748098597106,0.78159,2558.1,2558.0,0.00585686]
[1748098597305,0.78159,2558.1,2558.0,0.78747686]
[1748098597505,18.36859,2558.1,2558.0,0.78747686]
[1748098597808,17.587,2558.1,2558.0,0.78747686]
[1748098598607,18.9217,2558.1,2558.0,0.78747686]
[1748098601304,2.34102555,2558.2,2558.1,0.78159]
[1748098601504,3.1939201,2558.5,2558.4,0.7815]
[1748098601710,3.1939201,2558.5,2558.4,3.9893]
[1748098601901,3.11842384,2558.5,2558.4,3.9893]
[1748098602397,2.6322,2559.0,2558.5,1.95367]
[1748098602701,2.6322,2559.0,2558.9,0.78134]
[1748098603101,17.588,2559.1,2559.0,0.7813]
[1748098603512,17.588,2559.1,2558.8,1.361]
[1748098603711,1.3217,2559.0,2558.8,1.361]
[1748098604011,2.10303,2559.0,2558.8,2.14237]
[1748098604608,0.6759,2558.9,2558.8,1.361]
[1748098605006,0.6759,2558.9,2558.8,2.14237]
[1748098607619,1.3217,2559.0,2558.9,0.78134]
[1748098607815,1.3217,2559.0,2558.9,2.19534]
[1748098608213,2.10301,2559.0,2558.9,1.414]
[1748098608415,2.10301,2559.0,2558.8,0.78136]
[1748098608619,1.3969,2558.9,2558.8,0.78136]
[1748098609421,1.3969,2558.9,2558.8,2.19536]
[1748098610121,1.47239626,2558.9,2558.8,2.19536]
[1748098614126,0.07549626,2558.9,2558.8,2.19536]
[1748098614826,1.43439626,2558.9,2558.8,2.19536]
[1748098619626,1.43439626,2558.9,2558.7,3.2078]
[1748098619828,1.47227,2558.8,2558.7,3.2078]
[1748098620331,0.6909,2558.8,2558.7,3.98921]
[1748098620531,1.43439626,2558.9,2558.8,0.78137]
[1748098621029,1.43439626,2558.9,2558.8,2.73787]
[1748098623533,0.07549626,2558.9,2558.8,2.73787]
[1748098623833,0.07549626,2558.9,2558.8,3.44617]
[1748098625133,0.85683626,2558.9,2558.8,3.44617]
[1748098625434,0.07549626,2558.9,2558.8,3.44617]
[1748098626933,0.07549626,2558.9,2558.8,8.44617]
[1748098626934,1e-08,2558.9,2558.8,8.44617]
[1748098629934,6.86e-06,2559.4,2558.8,8.44617]
[1748098630238,2.33425307,2559.7,2559.6,0.78113]
[1748098630539,2.33425307,2559.7,2559.6,19.39093]
[1748098631135,2.33425307,2559.7,2559.6,24.39093]
[1748098631734,0.00585686,2559.9,2559.8,0.78107]
[1748098632036,2.77726,2560.5,2559.7,3.59866927]
[1748098632336,2.77726,2560.5,2560.2,0.78093]
[1748098632734,2.77726,2560.5,2560.2,2.10733]
[1748098632936,2.77726,2560.5,2560.3,2.10732]
[1748098633237,1.9964,2560.5,2560.3,2.1073]
[1748098633441,1.9964,2560.5,2560.4,0.78089]
[1748098633633,1.9964,2560.5,2560.4,2.10729]
[1748098634038,1.9964,2560.5,2560.4,1.3264]
[1748098634339,0.6658,2560.5,2560.4,2.10729]
[1748098634739,2.0156,2560.5,2560.4,1.3264]
[1748098635739,2.0156,2560.5,2560.4,4.5342]
[1748098636238,2.0156,2560.5,2560.4,5.31509]
[1748098638446,0.68965686,2560.6,2560.5,0.78086]
[1748098638646,0.00585686,2560.6,2560.5,2.09836]
[1748098640150,6.86e-06,2560.6,2560.5,2.09836]
[1748098640445,0.07550312,2560.6,2560.5,2.09836]
[1748098645554,0.85634312,2560.6,2560.4,3.2078]
[1748098645756,3.53056,2560.5,2560.4,3.2078]
[1748098646049,2.7497,2560.5,2560.4,3.98869]
[1748098646652,2.7497,2560.5,2560.4,3.2078]
[1748098646849,3.53056,2560.5,2560.4,3.2078]
[1748098650755,2.7497,2560.5,2560.4,3.2078]
[1748098650959,2.7497,2560.5,2560.4,3.98869]
[1748098653856,1.3799,2560.5,2560.4,3.98869]
[1748098654059,0.07550312,2560.6,2560.5,0.78086]
[1748098654251,0.07550312,2560.6,2560.5,3.42696]
[1748098654558,6.86e-06,2560.6,2560.5,3.42696]
[1748098662165,6.86e-06,2560.6,2560.5,18.83696]
[1748098663969,1.4023,2561.2,2560.5,23.0561]
[1748098664164,1.33135354,2561.3,2561.2,0.78064]
[1748098664363,0.27745354,2561.3,2561.2,16.19064]
[1748098664557,3.54e-06,2561.3,2561.2,23.78844]
[1748098664764,3.54e-06,2561.3,2561.2,34.19844]
[1748098665467,3.54e-06,2561.3,2561.2,18.89844]
[1748098665868,0.00585686,2561.5,2561.4,0.78058]
[1748098666068,0.00585686,2561.5,2561.4,3.98838]
[1748098667967,0.00585686,2561.5,2561.4,5.32638]
[1748098668276,0.00585686,2561.5,2561.4,3.2078]
[1748098668475,0.00585686,2561.5,2561.4,3.98838]
[1748098668868,0.64505686,2561.5,2561.4,3.98838]
[1748098669068,1.28805686,2561.5,2561.4,3.98838]
[1748098670468,0.00585686,2561.5,2561.4,3.98838]
[1748098671071,1.30765686,2561.5,2561.4,3.98838]
[1748098672872,1.30765686,2561.5,2561.4,3.2078]
[1748098673175,1.30765686,2561.5,2561.4,3.98838]
[1748098674277,1.30765686,2561.5,2561.4,3.2078]
[1748098674473,1.30765686,2561.5,2561.4,3.98838]
[1748098678380,1.30765686,2561.5,2561.4,3.2078]
[1748098678583,1.30765686,2561.5,2561.4,3.98838]